bitfinex/quotes_SOLUSD_20251125
["timestamp","ask_amount","ask_price","bid_price","bid_amount"]
[1764092868465,6.59953681,137.68,137.66,0.67]
[1764092869074,6.59953681,137.68,137.63,7.46542143]
[1764092869255,6.59953681,137.66,137.63,8.13542143]
[1764092869592,3.24,137.66,137.63,8.13542143]
[1764092870591,6.01151939,137.66,137.63,8.13542143]
[1764092871394,3.24,137.66,137.64,0.67]
[1764092871690,3.24,137.67,137.64,0.67]
[1764092872753,3.24,137.67,137.65,7.26480203]
[1764092873360,3.24,137.67,137.65,7.94480203]
[1764092873764,3.24,137.67,137.65,7.26480203]
[1764092873967,3.24,137.67,137.65,7.94480203]
[1764092875186,10.03422157,137.69,137.65,7.94480203]
[1764092875479,3.24,137.68,137.65,7.94480203]
[1764092876051,6.01151939,137.68,137.65,7.94480203]
[1764092877283,0.71,137.67,137.64,7.26510522]
[1764092877466,3.48151939,137.67,137.64,7.94510522]
[1764092878785,10.74532675,137.67,137.64,7.26510522]
[1764092878955,2.77151939,137.66,137.64,7.26510522]
[1764092879367,10.74532675,137.67,137.64,7.26510522]
[1764092880075,2.77151939,137.66,137.63,8.1456033]
[1764092880479,3.47151939,137.67,137.64,0.68]
[1764092880685,3.47151939,137.67,137.63,8.1456033]
[1764092881060,2.77151939,137.64,137.63,0.2]
[1764092881576,3.47151939,137.64,137.63,0.2]
[1764092882596,25.81880892,137.64,137.63,0.2]
[1764092882793,35.85565815,137.64,137.63,0.2]
[1764092883271,39.09565815,137.64,137.63,1e-08]
[1764092883470,25.11880892,137.6,137.53,7.95103973]
[1764092883676,2.77151939,137.57,137.53,0.68]
[1764092883972,3.24,137.57,137.54,0.68]
[1764092884569,2.77151939,137.58,137.54,0.68]
[1764092884765,2.77151939,137.59,137.55,7.2700836]
[1764092885070,6.01151939,137.59,137.55,7.2700836]
[1764092885265,6.01151939,137.6,137.56,0.68]
[1764092886269,6.71151939,137.6,137.56,0.68]
[1764092886465,6.01151939,137.6,137.56,0.68]
[1764092886860,6.01151939,137.6,137.57,7.26902667]
[1764092887296,6.01151939,137.6,137.57,0.68]
[1764092887595,6.01151939,137.6,137.53,16.988864]
[1764092887596,2.77151939,137.58,137.53,16.988864]
[1764092887891,3.24,137.57,137.54,0.68]
[1764092888269,6.01151939,137.59,137.54,0.68]
[1764092888872,2.77151939,137.58,137.55,7.2700836]
[1764092889400,3.47151939,137.58,137.55,7.2700836]
[1764092889566,2.77151939,137.57,137.54,0.68]
[1764092889768,3.47151939,137.57,137.54,0.68]
[1764092889990,3.47151939,137.57,137.53,23.58000434]
[1764092890196,2.77151939,137.56,137.53,24.26000434]
[1764092890493,3.47151939,137.57,137.53,23.58000434]
[1764092890902,10.74057479,137.57,137.53,24.26000434]
[1764092891096,2.77151939,137.56,137.53,0.68]
[1764092891271,6.71151939,137.56,137.53,0.68]
[1764092891467,6.01151939,137.56,137.53,0.68]
[1764092892076,0.7,137.55,137.52,23.58048243]
[1764092892369,2.77151939,137.53,137.51,0.1]
[1764092892574,6.01151939,137.52,137.51,0.1]
[1764092892883,22.09313388,137.52,137.51,0.1]
[1764092893085,15.52146431,137.52,137.51,0.1]
[1764092893384,2.77151939,137.53,137.51,0.1]
[1764092893572,6.01151939,137.53,137.51,0.1]
[1764092893987,6.71151939,137.53,137.51,0.1]
[1764092894199,3.24,137.53,137.51,0.1]
[1764092894499,3.24,137.55,137.51,0.78]
[1764092894876,9.84869602,137.55,137.51,8.0519765]
[1764092895077,3.24,137.55,137.51,7.3719765]
[1764092895278,3.24,137.55,137.52,0.68]
[1764092895475,17.11892673,137.55,137.51,0.78]
[1764092895776,6.60869602,137.53,137.51,0.1]
[1764092896303,6.60869602,137.53,137.51,7.37214814]
[1764092896596,16.308864,137.58,137.51,7.37214814]
[1764092896597,17.008864,137.56,137.51,8.05214814]
[1764092896899,9.84869602,137.55,137.51,8.05214814]
[1764092897072,6.60869602,137.54,137.51,0.78]
[1764092897277,6.60869602,137.53,137.51,0.78]
[1764092897904,6.60869602,137.53,137.51,8.05210761]
[1764092898192,9.84869602,137.54,137.51,8.05210761]
[1764092898399,10.54869602,137.54,137.51,7.37210761]
[1764092898607,14.7502741,137.54,137.51,7.37210761]
[1764092898790,14.7502741,137.54,137.51,8.05210761]
[1764092898986,3.24,137.54,137.51,8.05210761]
[1764092899189,15.4502741,137.54,137.51,7.37210761]
[1764092899704,11.5102741,137.53,137.51,0.1]
[1764092899878,11.5102741,137.53,137.51,7.37218597]
[1764092900575,11.5102741,137.53,137.51,0.1]
[1764092900782,12.2102741,137.53,137.51,0.1]
[1764092901090,19.48143927,137.53,137.51,0.1]
[1764092901321,12.2102741,137.53,137.51,0.1]
[1764092901473,11.5102741,137.53,137.51,0.1]
[1764092902202,12.2102741,137.53,137.51,0.1]
[1764092903182,11.5102741,137.53,137.51,0.1]
[1764092903385,12.2102741,137.53,137.51,0.1]
[1764092904901,11.5102741,137.53,137.51,0.1]
[1764092905211,15.4502741,137.54,137.51,0.1]
[1764092905518,11.5102741,137.6,137.53,11.5102741]
[1764092905685,3.24,137.59,137.54,11.5102741]
[1764092906183,11.5102741,137.6,137.55,0.68]
[1764092906511,3.24,137.59,137.55,0.68]
[1764092906706,3.24,137.59,137.56,7.2695551]
[1764092906903,15.4502741,137.59,137.55,7.94985782]
[1764092907384,15.4502741,137.59,137.56,0.68]
[1764092907707,11.5102741,137.62,137.56,12.1902741]
[1764092907913,3.24,137.6,137.56,12.1902741]
[1764092908221,3.24,137.6,137.57,0.68]
[1764092908588,3.24,137.6,137.58,7.26849832]
[1764092909082,11.5102741,137.63,137.58,25.43974414]
[1764092909311,14.7502741,137.62,137.59,0.68]
[1764092909611,3.94,137.62,137.58,25.43974414]
[1764092909817,15.4502741,137.62,137.59,0.68]
[1764092909986,11.5102741,137.61,137.58,7.94849832]
[1764092910581,14.7502741,137.62,137.59,0.68]
[1764092910805,14.7502741,137.62,137.59,7.94781149]
[1764092911003,3.24,137.62,137.59,7.94781149]
[1764092911206,0.7,137.64,137.59,25.43773662]
[1764092911520,3.94,137.63,137.59,25.43773662]
[1764092911687,15.4502741,137.63,137.59,26.11773662]
[1764092911887,12.2102741,137.63,137.59,26.11773662]
[1764092912191,11.5102741,137.64,137.6,0.68]
[1764092912389,3.24,137.63,137.6,0.68]
[1764092912594,15.4502741,137.63,137.59,25.43773662]
[1764092912806,15.4502741,137.63,137.59,26.11773662]
[1764092915313,11.5102741,137.64,137.6,0.68]
[1764092915612,3.24,137.64,137.6,12.1902741]
[1764092915786,3.24,137.64,137.6,0.68]
[1764092915990,3.94,137.64,137.6,0.68]
[1764092916327,15.4502741,137.64,137.6,0.68]
[1764092916609,8.27191043,137.64,137.6,0.68]
[1764092917012,4.33191043,137.63,137.6,0.68]
[1764092917310,5.03191043,137.63,137.59,25.43773662]
[1764092917519,4.33191043,137.63,137.6,0.68]
[1764092917889,8.80994492,137.68,137.61,4.33191043]
[1764092918216,4.33191043,137.65,137.62,16.308864]
[1764092918417,4.33191043,137.63,137.6,0.68]
[1764092918717,4.33191043,137.62,137.59,23.57667549]
[1764092918888,4.33191043,137.62,137.59,7.26781149]
[1764092919086,4.33191043,137.6,137.58,7.26830834]
[1764092919488,4.33191043,137.6,137.57,25.4408424]
[1764092919719,4.33191043,137.6,137.57,26.1208424]
[1764092919888,4.33191043,137.59,137.57,7.26902667]
[1764092920093,4.33191043,137.59,137.56,7.94946789]
[1764092920313,8.27191043,137.6,137.56,7.94946789]
[1764092920511,3.24,137.6,137.57,0.68]
[1764092922122,3.94,137.6,137.58,7.26849832]
[1764092922300,8.27191043,137.6,137.58,7.26849832]
[1764092922616,8.27191043,137.6,137.57,7.26884038]
[1764092923597,8.27191043,137.6,137.57,7.94884038]
[1764092923997,7.57191043,137.62,137.58,0.68]
[1764092924519,4.33191043,137.61,137.58,0.68]
[1764092925016,5.03191043,137.6,137.57,7.26884038]
[1764092926331,4.33191043,137.6,137.57,0.68]
[1764092926712,5.03191043,137.6,137.57,0.68]
[1764092927099,4.33191043,137.6,137.57,0.68]
[1764092927616,5.03191043,137.6,137.57,0.68]
[1764092928728,5.03191043,137.6,137.57,7.94851688]
[1764092929023,4.33191043,137.58,137.56,7.26934547]
[1764092929224,4.33191043,137.6,137.56,7.26934547]
[1764092929398,4.33191043,137.61,137.57,0.68]
[1764092929603,8.27191043,137.62,137.57,0.68]
[1764092929802,3.24,137.62,137.57,0.68]
[1764092930224,8.27191043,137.62,137.57,0.68]
[1764092931206,8.27191043,137.62,137.58,25.43974414]
[1764092931833,8.27191043,137.62,137.58,26.11974414]
[1764092932516,4.33191043,137.61,137.58,26.11974414]
[1764092933437,3.94,137.62,137.58,25.43974414]
[1764092933740,4.33191043,137.61,137.58,26.13974414]
[1764092935021,5.03191043,137.61,137.58,7.26849832]
[1764092935339,4.33191043,137.61,137.58,7.96849832]
[1764092935840,7.26269155,137.69,137.59,5.03191043]
[1764092936011,4.33191043,137.65,137.59,5.03191043]
[1764092936216,4.33191043,137.65,137.6,0.7]
[1764092936516,5.03191043,137.65,137.6,0.7]
[1764092937233,0.7,137.64,137.61,7.26691374]
[1764092937814,0.7,137.64,137.61,7.96691374]
[1764092938511,5.03191043,137.65,137.61,26.13419809]
[1764092938862,5.03191043,137.65,137.62,0.7]
[1764092939142,5.03191043,137.65,137.63,7.26585773]
[1764092939441,5.03191043,137.65,137.62,7.26616544]
[1764092939612,5.05191043,137.64,137.62,7.26616544]
[1764092939936,0.72,137.64,137.62,7.26616544]
[1764092940146,0.72,137.66,137.62,7.97616544]
[1764092940345,4.33191043,137.65,137.62,7.26616544]
[1764092940532,4.33191043,137.65,137.62,7.97616544]
[1764092940736,5.05191043,137.65,137.62,7.26616544]
[1764092941135,4.33191043,137.64,137.62,7.26616544]
[1764092941332,4.33191043,137.64,137.61,25.43419809]
[1764092941542,5.05191043,137.64,137.61,25.43419809]
[1764092941848,0.72,137.65,137.61,26.14419809]
[1764092942045,5.05191043,137.65,137.61,26.14419809]
[1764092943358,7.57191043,137.66,137.63,7.26585773]
[1764092943649,0.72,137.67,137.63,7.26585773]
[1764092943650,3.24,137.67,137.64,0.71]
[1764092943832,7.57191043,137.67,137.64,0.71]
[1764092944544,8.29191043,137.67,137.64,0.71]
[1764092944746,3.24,137.67,137.64,7.97483935]
[1764092945048,7.57191043,137.67,137.64,7.97483935]
[1764092945233,8.29191043,137.67,137.64,7.97483935]
[1764092945427,8.29191043,137.67,137.64,7.26483935]
[1764092945634,8.29191043,137.67,137.64,7.97483935]
[1764092945830,7.57191043,137.67,137.64,7.97483935]
[1764092946150,0.72,137.67,137.64,26.13816396]
[1764092946738,5.05191043,137.68,137.64,26.13816396]
[1764092946936,4.33191043,137.67,137.64,7.97483935]
[1764092947237,0.72,137.68,137.64,26.13816396]
[1764092947449,5.05191043,137.68,137.64,26.13816396]
[1764092947647,4.33191043,137.67,137.64,7.26483935]
[1764092947853,4.33191043,137.65,137.63,7.26568279]
[1764092948240,5.05191043,137.64,137.62,7.26616383]
[1764092948657,0.72,137.64,137.62,7.26616383]
[1764092949056,5.05191043,137.64,137.61,25.43290779]
[1764092949264,4.33191043,137.63,137.61,7.26691374]
[1764092949438,4.33191043,137.62,137.6,7.26720182]
[1764092949749,4.33191043,137.62,137.59,7.97782236]
[1764092949949,5.05191043,137.63,137.59,7.97782236]
[1764092950266,4.33191043,137.63,137.59,7.97782236]
[1764092950450,5.05191043,137.63,137.59,7.97782236]
[1764092950844,5.05191043,137.63,137.59,26.14774749]
[1764092951058,0.72,137.62,137.59,25.43774749]
[1764092951569,0.72,137.62,137.59,26.14774749]
[1764092951748,4.33191043,137.63,137.59,26.14774749]
[1764092952065,5.05191043,137.63,137.59,26.14774749]
[1764092952964,4.33191043,137.63,137.59,25.43774749]
[1764092953152,5.05191043,137.63,137.59,26.14774749]
[1764092953652,5.05191043,137.63,137.6,0.71]
[1764092954049,5.05191043,137.63,137.61,7.26691374]
[1764092955439,4.69518043,137.64,137.61,7.26691374]
[1764092955640,3.60327,137.64,137.61,7.97691374]
[1764092956247,4.32327,137.64,137.61,26.14419809]
[1764092956657,0.36327,137.64,137.62,0.71]
[1764092958645,0.36327,137.64,137.63,7.26585773]
[1764092959263,0.36327,137.64,137.63,7.97585773]
[1764092961380,0.36327,137.64,137.63,7.26585773]
[1764092963257,0.36327,137.64,137.63,7.98585773]
[1764092964277,0.69,137.72,137.66,16.308864]
[1764092964572,2.77151031,137.7,137.66,16.308864]
[1764092965074,3.46151031,137.69,137.66,16.308864]
[1764092965453,2.77151031,137.67,137.63,7.26585773]
[1764092965845,3.46151031,137.67,137.63,26.15050206]
[1764092966043,0.69,137.66,137.63,7.26585773]
[1764092967163,2.77151031,137.65,137.61,7.26667995]
[1764092967367,2.77151031,137.65,137.61,7.98667995]
[1764092967556,3.46151031,137.65,137.61,7.98667995]
[1764092968468,2.77151031,137.66,137.61,25.4339643]
[1764092968773,3.46151031,137.66,137.62,0.72]
[1764092968951,0.69,137.65,137.61,26.1539643]
[1764092969145,0.69,137.65,137.61,25.4339643]
[1764092969342,0.69,137.65,137.62,0.72]
[1764092969547,3.46151031,137.66,137.62,0.72]
[1764092970793,3.46151031,137.66,137.63,7.26585773]
[1764092971491,2.77151031,137.66,137.63,7.26585773]
[1764092971661,3.46151031,137.66,137.63,7.26585773]
[1764092971859,3.46151031,137.65,137.62,7.26618953]
[1764092972071,0.69,137.65,137.62,7.26618953]
[1764092973193,0.69,137.65,137.62,25.43215377]
[1764092973560,3.46151031,137.67,137.62,26.15215377]
[1764092973763,2.77151031,137.66,137.62,26.15215377]
[1764092973992,3.46151031,137.66,137.62,26.15215377]
[1764092974576,0.69,137.65,137.62,25.43215377]
[1764092975082,0.69,137.65,137.62,7.26618953]
[1764092977597,2.77151031,137.64,137.62,7.26618953]
[1764092977786,3.46151031,137.65,137.62,7.26618953]
[1764092978279,0.69,137.64,137.62,7.26618953]
[1764092979085,3.46151031,137.64,137.61,7.26681981]
[1764092979502,0.69,137.63,137.61,7.26681981]
[1764092982377,0.69,137.63,137.6,85.37614131]
[1764092982971,0.69,137.63,137.6,86.09614131]
[1764092983373,3.46151031,137.63,137.6,24.29614131]
[1764092983780,0.69,137.63,137.6,24.29614131]
[1764092983984,3.46151031,137.63,137.6,24.29614131]
[1764092984389,3.46151031,137.63,137.6,23.57614131]
[1764092984591,2.77151031,137.63,137.6,23.57614131]
[1764092984797,2.77151031,137.61,137.57,61.8]
[1764092985023,18.16121031,137.71,137.6,2.77151031]
[1764092985307,2.77151031,137.65,137.61,16.308864]
[1764092985606,2.77151031,137.64,137.61,16.308864]
[1764092985809,0.69,137.65,137.61,17.028864]
[1764092986005,3.46151031,137.65,137.61,17.028864]
[1764092986225,3.46151031,137.65,137.61,16.308864]
[1764092986503,2.77151031,137.63,137.58,65.04]
[1764092986723,2.77151031,137.62,137.57,42.47023913]
[1764092987099,0.69,137.61,137.57,42.47023913]
[1764092987294,3.46151031,137.61,137.57,42.47023913]
[1764092987608,0.69,137.61,137.58,0.72]
[1764092988006,0.69,137.61,137.59,7.26797005]
[1764092988816,2.77151031,137.6,137.56,3.96]
[1764092988979,2.77151031,137.59,137.56,7.26925032]
[1764092989301,3.46151031,137.6,137.56,7.98925032]
[1764092989802,0.69,137.59,137.56,7.98925032]
[1764092990700,0.69,137.59,137.55,25.44479322]
[1764092990881,0.69,137.59,137.55,26.16479322]
[1764092991907,0.69,137.59,137.57,7.26902667]
[1764092992078,2.77151031,137.6,137.57,7.26902667]
[1764092992283,0.69,137.62,137.58,0.72]
[1764092993493,0.69,137.62,137.59,7.26797005]
[1764092993783,2.77151031,137.61,137.57,69.06869115]
[1764092993995,2.77151031,137.61,137.57,87.92125784]
[1764092994313,3.46151031,137.61,137.57,87.92125784]
[1764092994485,2.77151031,137.61,137.57,87.92125784]
[1764092994800,0.69,137.6,137.57,87.92125784]
[1764092995005,3.46151031,137.61,137.57,87.92125784]
[1764092995805,3.46151031,137.63,137.58,0.68]
[1764092996127,2.77151031,137.62,137.58,0.68]
[1764092996282,3.46151031,137.62,137.58,0.68]
[1764092997004,3.46151031,137.61,137.59,7.26797005]
[1764092997506,0.69,137.6,137.59,7.26797005]
[1764092997888,3.46151031,137.61,137.59,7.26797005]
[1764092998407,3.46151031,137.62,137.59,7.94797005]
[1764092999207,3.46151031,137.62,137.58,7.97849832]
[1764092999500,6.71151031,137.64,137.58,28.92125445]
[1764092999708,6.71151031,137.64,137.59,0.71]
[1764092999888,0.7,137.63,137.59,0.71]
[1764093000390,3.47151031,137.63,137.59,0.71]
[1764093000717,2.77151031,137.62,137.58,73.01849832]
[1764093000890,0.7,137.62,137.59,0.71]
[1764093001204,3.47151031,137.62,137.6,7.26744186]
[1764093001422,3.47151031,137.61,137.58,61.8]
[1764093001612,2.77151031,137.6,137.57,16.308864]
[1764093001804,3.47151031,137.6,137.58,7.26846748]
[1764093002011,0.7,137.6,137.58,7.26846748]
[1764093002308,3.47151031,137.6,137.58,7.26846748]
[1764093002809,2.77151031,137.61,137.58,7.26846748]
[1764093002982,3.47151031,137.61,137.58,7.26846748]
[1764093004792,10.50594521,137.63,137.58,7.26846748]
[1764093004793,0.7,137.63,137.59,0.71]
[1764093004993,0.7,137.62,137.59,0.71]
[1764093005207,0.7,137.62,137.58,25.4397133]
[1764093005208,3.47151031,137.62,137.58,25.4397133]
[1764093005410,3.47151031,137.62,137.58,26.1497133]
[1764093005728,16.308864,137.65,137.61,2.77151031]
[1764093005901,8.80994492,137.72,137.62,3.24]
[1764093006107,3.47151031,137.7,137.62,3.95]
[1764093006403,2.77151031,137.69,137.64,2.77151031]
[1764093006583,3.47151031,137.69,137.64,2.77151031]
[1764093006788,0.7,137.68,137.64,3.48151031]
[1764093006990,7.46071541,137.77,137.66,2.77151031]
[1764093007187,7.46071541,137.77,137.67,2.77151031]
[1764093007188,3.47151031,137.72,137.67,2.77151031]
[1764093007412,3.47151031,137.72,137.68,7.26321905]
[1764093007586,3.47151031,137.71,137.68,7.26321905]
[1764093007791,2.77151031,137.69,137.62,0.71]
[1764093008015,0.7,137.7,137.64,2.77151031]
[1764093008214,3.47151031,137.7,137.65,19.08037431]
[1764093008517,3.47151031,137.7,137.65,19.79037431]
[1764093008707,3.47151031,137.7,137.65,19.08037431]
[1764093008890,2.77151031,137.7,137.65,19.79037431]
[1764093009090,0.7,137.69,137.65,19.79037431]
[1764093009396,0.7,137.69,137.66,7.26427429]
[1764093009596,0.7,137.69,137.65,19.79037431]
[1764093009790,2.77151031,137.67,137.62,3.93]
[1764093010008,2.77151031,137.65,137.61,16.308864]
[1764093010195,2.77151031,137.66,137.62,16.308864]
[1764093010605,0.7,137.65,137.62,16.308864]
[1764093011008,3.47151031,137.67,137.63,7.26585773]
[1764093011292,2.77151031,137.66,137.62,17.018864]
[1764093011814,3.47151031,137.66,137.62,24.28505609]
[1764093012497,0.7,137.65,137.62,16.308864]
[1764093012816,3.47151031,137.66,137.62,17.018864]
[1764093013026,25.4212742,137.68,137.65,19.08037431]
[1764093013027,8.80994492,137.68,137.65,19.08037431]
[1764093013194,0.7,137.7,137.65,16.308864]
[1764093013392,3.22,137.73,137.67,2.77151031]
[1764093013709,11.08604124,137.76,137.67,2.77151031]
[1764093013710,0.7,137.71,137.67,2.77151031]
[1764093013897,2.77151031,137.73,137.68,2.77151031]
[1764093014096,0.2,137.77,137.68,2.77151031]
[1764093014097,2.97151031,137.77,137.72,2.77151031]
[1764093014300,0.2,137.77,137.72,2.77151031]
[1764093014495,2.77151031,137.74,137.69,23.01037431]
[1764093014698,2.77151031,137.73,137.71,16.308864]
[1764093014923,7.95962612,137.75,137.71,16.308864]
[1764093015226,7.95912893,137.76,137.71,16.308864]
[1764093015588,2.77151031,137.74,137.71,16.308864]
[1764093015792,2.77151031,137.73,137.71,16.308864]
[1764093016015,2.77151031,137.73,137.7,7.26205005]
[1764093016016,0.7,137.75,137.68,7.26302562]
[1764093016333,2.77151031,137.73,137.68,10.74453593]
[1764093016818,3.47151031,137.73,137.69,0.71]
[1764093017017,3.47151031,137.73,137.7,7.26216412]
[1764093017221,3.47151031,137.72,137.69,7.26253014]
[1764093017916,3.47151031,137.71,137.67,19.528864]
[1764093018095,3.47151031,137.71,137.67,24.28241304]
[1764093018297,2.77151031,137.68,137.63,0.71]
[1764093018490,2.77151031,137.68,137.63,3.93]
[1764093018799,3.47151031,137.68,137.64,7.26532984]
[1764093018997,3.47151031,137.68,137.64,7.97532984]
[1764093019404,2.77151031,137.69,137.65,0.71]
[1764093019602,3.47151031,137.7,137.65,3.48151031]
[1764093020124,3.47151031,137.7,137.66,0.71]
[1764093020518,3.47151031,137.69,137.64,26.13865445]
[1764093020721,4.32899296,137.68,137.64,26.13865445]
[1764093020931,5.02899296,137.68,137.64,26.13865445]
[1764093021234,4.32899296,137.69,137.65,0.71]
[1764093021398,5.02899296,137.69,137.66,7.26427429]
[1764093022123,4.32899296,137.67,137.65,7.264641]
[1764093022427,4.32899296,137.67,137.64,7.26520125]
[1764093022820,5.02899296,137.67,137.64,7.26520125]
[1764093023525,4.32899296,137.68,137.64,26.13852586]
[1764093023708,5.01899296,137.68,137.64,26.13852586]
[1764093025721,0.69,137.69,137.64,25.42852586]
[1764093025899,4.32899296,137.68,137.65,0.71]
[1764093027217,4.32899296,137.68,137.66,7.26427429]
[1764093028515,4.32899296,137.68,137.65,7.26457841]
[1764093028713,4.32899296,137.66,137.64,7.26510607]
[1764093028927,4.32899296,137.65,137.63,61.8]
[1764093029122,5.01899296,137.66,137.62,25.43234993]
[1764093029518,5.01899296,137.67,137.63,0.71]
[1764093029718,0.69,137.67,137.63,0.71]
[1764093030038,4.32899296,137.69,137.64,7.54899296]
[1764093030511,0.69,137.69,137.65,5.03899296]
[1764093030825,5.01899296,137.71,137.66,4.32899296]
[1764093031016,5.01899296,137.71,137.66,5.03899296]
[1764093031329,5.01899296,137.71,137.68,7.26321905]
[1764093031628,0.69,137.71,137.68,7.26321905]
[1764093032730,5.01899296,137.71,137.68,7.26321905]
[1764093033633,0.69,137.7,137.67,25.42257995]
[1764093033828,5.01899296,137.71,137.67,26.13257995]
[1764093034215,5.01899296,137.7,137.67,7.26374664]
[1764093034519,5.01899296,137.71,137.67,7.97374664]
[1764093035222,12.2807154,137.71,137.67,7.26374664]
[1764093035422,5.01899296,137.7,137.67,7.26374664]
[1764093036443,5.01899296,137.7,137.66,25.424256]
[1764093036636,5.01899296,137.7,137.66,26.134256]
[1764093036830,5.01899296,137.7,137.66,87.934256]
[1764093037031,5.01899296,137.69,137.66,87.224256]
[1764093037647,4.32899296,137.67,137.58,98.14148934]
[1764093037817,3.91,137.68,137.59,8.25899296]
[1764093038017,4.32899296,137.64,137.6,18.16788668]
[1764093038219,0.69,137.67,137.6,23.20687964]
[1764093038427,8.23899296,137.67,137.63,7.26585773]
[1764093038828,0.69,137.66,137.63,7.26585773]
[1764093039227,5.01899296,137.66,137.63,7.26585773]
[1764093039432,0.69,137.68,137.64,0.71]
[1764093039736,5.01899296,137.68,137.64,0.71]
[1764093039946,5.01899296,137.67,137.63,25.43050206]
[1764093040118,5.01899296,137.67,137.63,7.26585773]
[1764093040448,0.69,137.66,137.63,7.26585773]
[1764093041148,5.01899296,137.66,137.63,7.26585773]
[1764093041527,0.69,137.65,137.63,7.26585773]
[1764093041721,4.32899296,137.68,137.63,29.75949502]
[1764093042048,0.69,137.66,137.63,25.43050206]
[1764093042544,0.69,137.66,137.63,26.14050206]
[1764093042730,5.01899296,137.66,137.63,7.26585773]
[1764093043326,5.01899296,137.65,137.62,69.06617534]
[1764093043522,5.01899296,137.64,137.61,7.26671158]
[1764093044734,5.01899296,137.63,137.6,7.26721871]
[1764093045133,5.01899296,137.64,137.6,7.97721871]
[1764093045526,5.01899296,137.64,137.6,26.14582336]
[1764093048647,8.80994492,137.68,137.62,4.32899296]
[1764093048821,5.01899296,137.66,137.62,4.32899296]
[1764093049146,5.01899296,137.66,137.61,62.51]
[1764093049147,5.01899296,137.66,137.61,66.83899296]
[1764093049321,0.69,137.65,137.61,66.83899296]
[1764093049918,0.69,137.65,137.62,7.26638569]
[1764093051825,0.69,137.66,137.63,4.32899296]
[1764093052044,0.69,137.66,137.62,30.47134289]
[1764093053529,0.66,137.68,137.63,5.01899296]
[1764093053836,4.98899296,137.68,137.64,4.32899296]
[1764093054233,0.66,137.67,137.63,5.01899296]
[1764093054628,0.66,137.67,137.64,7.26532984]
[1764093054829,4.98899296,137.67,137.64,7.26532984]
[1764093055233,0.66,137.66,137.64,7.26532984]
[1764093057346,8.20899296,137.68,137.64,7.26532984]
[1764093057553,0.66,137.68,137.65,0.69]
[1764093058061,0.66,137.68,137.64,30.44764741]
[1764093058358,4.98899296,137.68,137.64,30.44764741]
[1764093059152,4.32899296,137.68,137.64,30.44764741]
[1764093059344,0.68,137.67,137.64,30.44764741]
[1764093061260,0.2,137.77,137.7,8.80994492]
[1764093061556,5.00899296,137.76,137.71,5.00899296]
[1764093061761,4.32899296,137.75,137.71,16.988864]
[1764093062049,0.2,137.77,137.74,4.32899296]
[1764093062366,5.20899296,137.77,137.72,5.00899296]
[1764093062848,0.88,137.77,137.73,5.00899296]
[1764093063045,0.88,137.77,137.75,7.25952813]
[1764093063246,0.68,137.76,137.75,7.25952813]
[1764093063470,0.88,137.77,137.75,7.25952813]
[1764093063636,0.2,137.77,137.75,7.25952813]
[1764093063982,0.2,137.77,137.75,12.26852109]
[1764093064163,0.2,137.77,137.76,4.32899296]
[1764093064470,0.2,137.77,137.75,7.25952813]
[1764093064635,0.68,137.76,137.72,21.37223918]
[1764093064834,0.68,137.76,137.73,25.41203803]
[1764093065228,4.52899296,137.77,137.73,25.41203803]
[1764093065229,0.2,137.77,137.73,29.74103099]
[1764093065453,4.32899296,137.74,137.68,7.26321905]
[1764093065660,5.00899296,137.76,137.71,4.32899296]
[1764093065860,0.68,137.76,137.72,4.32899296]
[1764093066039,5.00899296,137.76,137.72,4.32899296]
[1764093066246,0.2,137.77,137.73,5.00899296]
[1764093066642,0.2,137.77,137.74,0.68]
[1764093067036,0.2,137.77,137.75,7.25952813]
[1764093067644,0.2,137.77,137.75,7.93952813]
[1764093068041,0.2,137.77,137.75,7.25952813]
[1764093069273,0.2,137.77,137.74,25.40894568]
[1764093069565,0.68,137.76,137.74,25.40894568]
[1764093069755,0.88,137.77,137.74,25.40894568]
[1764093070470,0.2,137.77,137.74,26.08894568]
[1764093070857,0.88,137.77,137.74,7.26005517]
[1764093071263,0.68,137.76,137.73,7.26058229]
[1764093071745,0.2,137.77,137.73,26.09203803]
[1764093071946,0.88,137.77,137.73,26.09203803]
[1764093072140,0.88,137.77,137.73,25.41203803]